bitfinex-derivatives/quotes_ETHF0:USTF0_20241230
["timestamp","ask_amount","ask_price","bid_price","bid_amount"]
[1735520963640,0.295,3396.5,3396.2,3.2078]
[1735520963843,3.2078,3396.9,3396.2,3.2078]
[1735520964040,0.29498,3396.6,3396.2,3.50281]
[1735520964442,0.29496,3396.8,3396.4,0.295]
[1735520964645,3.50276,3396.9,3396.4,0.29499]
[1735520964843,3.2078,3396.9,3396.2,3.2078]
[1735520965044,3.2078,3396.9,3396.3,0.295]
[1735520965351,0.29498,3396.7,3396.3,0.295]
[1735520965743,3.2078,3396.9,3396.2,3.2078]
[1735520965946,8.2078,3396.9,3396.2,3.2078]
[1735520966144,0.29504,3396.0,3395.8,3.2078]
[1735520966451,0.73744,3396.7,3395.8,3.2078]
[1735520966745,0.29503,3396.1,3395.8,3.2078]
[1735520966952,0.29504,3396.0,3395.8,3.2078]
[1735520967249,3.2078,3396.9,3395.8,3.2078]
[1735520967544,0.295,3396.4,3396.3,3.2078]
[1735520968049,0.29499,3396.5,3396.3,3.2078]
[1735520968448,0.7345,3396.8,3396.3,3.2078]
[1735520968645,0.29499,3396.5,3396.3,3.2078]
[1735520969548,0.7345,3396.8,3396.3,3.2078]
[1735520969748,0.295,3396.4,3396.3,3.2078]
[1735520970551,0.29497,3396.7,3396.4,0.29499]
[1735520971351,1.3217,3397.2,3396.4,0.29499]
[1735520971546,0.29498,3396.7,3396.4,0.29499]
[1735520972247,0.29499,3396.5,3396.3,3.2078]
[1735520972447,0.29498,3396.6,3396.3,3.5028]
[1735520973055,1.3217,3397.2,3396.3,3.2078]
[1735520973254,0.295,3396.4,3396.3,3.2078]
[1735520973856,3.2078,3396.6,3395.8,3.2078]
[1735520974055,0.29504,3395.9,3395.8,3.2078]
[1735520974457,0.29508,3395.5,3395.4,3.2078]
[1735520975672,0.29511,3395.1,3395.0,0.7237]
[1735520975858,0.29512,3395.0,3394.9,3.2078]
[1735520976053,3.2078,3395.7,3394.9,3.2078]
[1735520976358,0.29511,3395.2,3394.9,3.2078]
[1735520976554,0.7069,3396.2,3395.0,2.84023911]
[1735520976751,0.29506,3395.8,3395.5,0.29507]
[1735520977360,0.29506,3395.8,3395.6,40.8]
[1735520977656,0.29506,3395.7,3395.6,40.8]
[1735520978457,0.29506,3395.7,3395.4,3.50288]
[1735520978850,0.29506,3395.7,3395.4,44.30288]
[1735520979749,3.2078,3396.5,3395.5,1.4314]
[1735520979954,0.29503,3396.1,3395.9,0.29504]
[1735520980154,0.29503,3396.1,3395.8,0.29505]
[1735520980354,0.29503,3396.1,3395.5,1.4314]
[1735520980553,3.2078,3396.5,3396.0,3.2078]
[1735520980761,0.29502,3396.2,3396.0,3.2078]
[1735520980954,0.73743,3396.8,3396.0,3.2078]
[1735520981254,3.2078,3396.9,3396.4,3.2078]
[1735520981659,0.29497,3396.8,3396.5,0.29499]
[1735520981850,0.29497,3396.8,3396.4,3.2078]
[1735520981851,3.2078,3396.9,3396.4,3.2078]
[1735520982054,0.29496,3396.8,3396.4,3.2078]
[1735520982255,0.29496,3396.8,3396.5,0.29499]
[1735520982459,3.2078,3396.9,3396.4,3.2078]
[1735520982664,0.29497,3396.7,3396.4,3.50279]
[1735520982864,0.29499,3396.5,3396.4,3.2078]
[1735520983367,0.29499,3396.6,3396.4,3.2078]
[1735520983552,2.1082,3397.1,3396.4,3.2078]
[1735520983756,0.29495,3397.0,3396.9,3.2078]
[1735520984864,8.2078,3397.0,3395.9,3.2078]
[1735520985065,0.29503,3396.0,3395.9,3.2078]
[1735520987059,3.2078,3396.2,3395.4,3.2078]
[1735520987265,0.29508,3395.5,3395.4,3.2078]
[1735520988165,0.29512,3395.0,3394.9,3.2078]
[1735520988360,1.292,3395.1,3394.2,10.05670534]
[1735520988565,4.6161,3394.9,3394.2,10.05670534]
[1735520988760,0.29518,3394.3,3394.2,10.05670534]
[1735520989157,0.29514,3394.8,3394.2,10.05670534]
[1735520989460,4.6161,3394.9,3394.2,3.2078]
[1735520989461,0.29518,3394.4,3394.2,3.2078]
[1735520990763,4.6161,3394.9,3394.2,3.2078]
[1735520990764,0.29518,3394.3,3394.2,3.2078]
[1735520992670,0.29523,3393.8,3393.7,3.2078]
[1735520993169,0.29522,3394.0,3393.7,3.2078]
[1735520993969,0.29522,3393.8,3393.7,3.2078]
[1735520994274,0.29522,3393.8,3393.3,6.84890534]
[1735520994275,0.29526,3393.4,3393.3,10.05670534]
[1735520994769,0.29526,3393.4,3393.1,9.20575225]
[1735520994770,0.29528,3393.2,3393.1,9.20575225]
[1735520994966,3.13551911,3393.2,3393.1,9.20575225]
[1735520995163,8.13551911,3393.2,3393.1,6.55245225]
[1735520995360,8.13551911,3393.2,3393.1,4.86357225]
[1735520995566,7.84023911,3393.2,3392.1,13.80862837]
[1735520995771,3.2078,3392.9,3392.7,10.89027314]
[1735520996068,3.13554911,3392.8,3392.7,8.86501314]
[1735520996272,0.29541,3391.7,3391.6,10.75924647]
[1735520997270,0.2954,3391.8,3391.6,3.8799]
[1735520997671,3.2078,3392.4,3391.6,4.17531]
[1735520997672,0.29537,3392.2,3391.6,4.17531]
[1735520997971,0.29541,3391.7,3391.6,3.8799]
[1735520998677,0.2954,3391.8,3391.6,3.8799]
[1735520999075,0.29541,3391.7,3391.6,3.8799]
[1735521000373,0.29541,3391.7,3391.6,3.2078]
[1735521001469,0.29544,3391.4,3391.2,3.2078]
[1735521001667,0.29539,3391.9,3391.2,3.2078]
[1735521001867,0.29543,3391.5,3391.2,3.2078]
[1735521002871,0.29544,3391.4,3391.2,3.2078]
[1735521003271,3.2078,3392.0,3391.2,3.2078]
[1735521003477,2.84023911,3392.8,3391.6,3.2078]
[1735521003669,2.84023911,3392.8,3392.2,3.2078]
[1735521003873,0.2954,3391.8,3391.7,3.2078]
[1735521004074,0.29541,3391.7,3391.3,3.2078]
[1735521004281,0.29542,3391.6,3391.3,3.2078]
[1735521004593,0.29542,3391.6,3391.4,40.8]
[1735521005193,2.84023911,3392.4,3391.4,40.8]
[1735521005389,0.29542,3391.5,3391.4,40.8]
[1735521005793,3.2078,3392.0,3391.3,3.2078]
[1735521005999,0.79735704,3392.3,3391.3,3.2078]
[1735521006195,0.29543,3391.5,3391.3,44.0078]
[1735521006889,0.79735704,3392.3,3391.3,3.2078]
[1735521007191,0.05895704,3392.3,3391.9,3.2078]
[1735521007388,0.29538,3392.0,3391.9,3.2078]
[1735521007896,0.05895704,3392.3,3391.4,44.0078]
[1735521007897,0.29541,3391.8,3391.4,44.0078]
[1735521008288,0.05895704,3392.3,3391.4,44.0078]
[1735521008491,0.05895704,3392.3,3392.2,3.2078]
[1735521008691,0.05895704,3392.3,3392.2,3.9248]
[1735521008992,0.05895704,3392.3,3392.2,3.2078]
[1735521009200,0.35431704,3392.3,3392.2,3.2078]
[1735521012092,0.29538,3392.0,3391.9,0.7283]
[1735521012991,0.29539,3391.9,3391.8,3.9165]
[1735521013296,0.29542,3391.5,3391.4,3.2078]
[1735521013494,0.29545,3391.3,3391.0,3.8893]
[1735521013694,0.29545,3391.3,3391.1,0.7208]
[1735521013895,0.29545,3391.2,3391.1,0.7208]
[1735521016094,0.29549,3390.7,3390.6,0.69]
[1735521016295,2.84023911,3390.8,3390.5,3.2078]
[1735521016513,0.2955,3390.6,3390.5,3.2078]
[1735521018102,0.29547,3391.0,3390.5,3.2078]
[1735521018306,6.78658911,3391.6,3390.5,3.2078]
[1735521018506,0.29547,3391.0,3390.9,3.2078]
[1735521018805,0.29549,3390.7,3390.6,0.7091]
[1735521019102,6.04803911,3391.2,3390.4,3.2078]
[1735521019304,0.29551,3390.5,3390.4,3.2078]
[1735521019506,0.29552,3390.5,3390.1,0.6909]
[1735521019900,0.79763791,3391.1,3390.1,0.6909]
[1735521019901,0.29553,3390.3,3390.1,0.6909]
[1735521020202,0.29552,3390.4,3390.1,0.6909]
[1735521020402,0.79763791,3391.1,3390.1,0.6909]
[1735521020604,0.29547,3391.0,3390.1,0.6909]
[1735521020798,0.73868,3391.0,3390.1,0.6909]
[1735521021002,0.29553,3390.3,3390.1,0.6909]
[1735521021304,0.29553,3390.3,3390.2,3.2078]
[1735521022009,0.2955,3390.7,3390.2,3.50333]
[1735521022306,0.29548,3390.9,3390.4,0.29551]
[1735521022704,0.29551,3390.6,3390.5,40.8]
[1735521023100,0.05897791,3391.1,3390.5,40.8]
[1735521023101,0.29549,3390.8,3390.5,40.8]
[1735521023302,0.2955,3390.7,3390.5,40.8]
[1735521023606,0.2955,3390.7,3390.3,0.29553]
[1735521023911,2.84023911,3392.4,3390.6,3.2078]
[1735521024208,0.29539,3391.9,3391.8,3.2078]
[1735521024399,4.5048,3392.6,3391.8,3.2078]
[1735521024605,0.29534,3392.5,3392.4,3.2078]
[1735521028216,0.29533,3392.6,3392.4,3.2078]
[1735521028508,3.2078,3393.2,3392.4,3.2078]
[1735521028709,0.2953,3393.0,3392.5,1.2954]
[1735521029013,3.2078,3393.2,3392.5,1.2954]
[1735521029014,0.29531,3392.9,3392.5,1.2954]
[1735521029508,3.2078,3393.2,3392.5,1.2954]
[1735521029708,0.29532,3392.7,3392.5,1.2954]
[1735521029918,0.2953,3393.0,3392.5,1.59073]
[1735521030405,0.29529,3393.1,3392.9,3.2078]
[1735521030610,2.84023911,3393.6,3392.9,3.2078]
[1735521030813,0.29527,3393.4,3392.9,3.5031]
[1735521031109,0.29529,3393.0,3392.9,3.2078]
[1735521031808,0.29525,3393.5,3392.9,3.2078]
[1735521032115,0.29526,3393.4,3392.9,3.5031]
[1735521032415,0.29527,3393.3,3392.9,3.5031]
[1735521032915,0.29528,3393.2,3392.9,3.2078]
[1735521033213,0.29527,3393.3,3392.9,3.2078]
[1735521033913,0.29528,3393.3,3392.9,3.8285]
[1735521034217,0.29525,3393.6,3393.1,0.29528]
[1735521034513,3.2078,3393.7,3392.9,3.8285]
[1735521034711,0.29527,3393.4,3392.9,4.1238]
[1735521035009,3.50304,3393.7,3393.1,0.29528]
[1735521035409,3.2078,3393.7,3393.0,0.29529]
[1735521035714,3.50304,3393.7,3393.1,0.29528]
[1735521036715,3.50304,3393.7,3393.2,0.29527]
[1735521037209,0.29524,3393.7,3393.3,3.2078]
[1735521037409,0.29523,3393.8,3393.3,3.50307]
[1735521037616,3.503,3394.1,3393.6,0.29523]
[1735521038610,3.2078,3394.1,3393.4,1.3085]
[1735521038816,3.2078,3394.1,3393.5,0.29525]
[1735521039020,0.29518,3394.4,3393.9,3.2078]
[1735521039216,5.51175061,3394.7,3393.9,3.2078]
[1735521039217,0.29516,3394.6,3394.1,0.2952]
[1735521039609,5.51175061,3394.7,3394.0,0.6586]
[1735521039810,0.29508,3395.5,3394.8,0.29513]
[1735521040014,5.76448972,3395.6,3395.1,3.2078]
[1735521040316,0.2951,3395.2,3395.1,3.2078]
[1735521041019,0.29512,3395.1,3394.9,0.6586]
[1735521042218,0.29512,3395.0,3394.9,0.6586]
[1735521042517,0.29514,3394.8,3394.7,3.2078]
[1735521042718,0.29514,3394.8,3394.4,0.6318]
[1735521043114,3.2078,3395.2,3394.4,0.6318]
[1735521043511,0.29516,3394.6,3394.4,0.6318]
[1735521043715,0.29515,3394.7,3394.4,0.6318]
[1735521044422,0.29516,3394.6,3394.4,0.6318]
[1735521044620,0.29514,3394.9,3394.4,0.92697]
[1735521044815,1.9539,3395.5,3394.7,3.2078]
[1735521045119,0.29514,3394.8,3394.7,3.2078]
[1735521045516,0.29514,3394.8,3394.2,3.2078]
[1735521045517,0.29518,3394.3,3394.2,3.2078]
[1735521046815,0.6497,3394.7,3393.7,0.29523]
[1735521046816,1.9607,3394.7,3393.7,3.2078]
[1735521047022,0.29521,3394.0,3393.7,3.2078]
[1735521047922,0.6435,3394.6,3393.7,3.8488]
[1735521048124,0.2952,3394.2,3393.7,4.14403]
[1735521048523,0.6435,3394.6,3393.7,3.8488]
[1735521048726,0.29519,3394.2,3393.7,3.8488]
[1735521049026,0.2952,3394.1,3393.7,4.14403]
[1735521049224,0.6435,3394.6,3393.7,3.8488]
[1735521049427,0.29522,3393.8,3393.7,3.8488]
[1735521050523,0.6435,3394.6,3393.7,3.8488]
[1735521050524,0.2952,3394.1,3393.7,3.8488]
[1735521051323,0.29521,3394.1,3393.7,3.8488]
[1735521052028,0.29521,3394.0,3393.7,3.8488]
[1735521052940,0.6435,3394.6,3393.7,3.8488]
[1735521053320,0.6435,3394.6,3393.8,0.29522]
[1735521053630,0.29519,3394.2,3393.8,0.29522]
[1735521053827,0.6435,3394.6,3393.7,3.8488]
[1735521054128,0.29521,3394.0,3393.7,3.8488]
[1735521054327,0.6435,3394.6,3393.7,3.8488]
[1735521054531,0.29521,3394.0,3393.7,3.8488]
[1735521056124,0.6435,3394.6,3393.7,3.8488]
[1735521056320,0.29523,3393.8,3393.7,3.8488]
[1735521056728,0.6435,3394.6,3393.7,3.8488]
[1735521056930,3.2078,3394.8,3393.7,8.8488]
[1735521057126,3.2078,3394.8,3394.3,3.2078]
[1735521057432,3.2078,3394.8,3394.6,0.29515]
[1735521057735,3.2078,3394.8,3394.7,0.63]
[1735521057930,4.5188,3395.4,3394.7,3.8378]
[1735521058129,0.29514,3394.8,3394.7,3.8378]
[1735521058932,4.5188,3395.4,3394.7,3.8378]
[1735521059228,0.29515,3394.8,3394.7,3.8378]
[1735521059629,5.25655,3395.4,3394.4,1.3135]
[1735521059830,0.29517,3394.5,3394.4,1.3135]
[1735521060032,0.7378,3395.2,3394.4,1.3135]
[1735521060235,5.25655,3395.4,3394.4,0.6792]
[1735521060426,0.29517,3394.5,3394.4,0.6792]
[1735521061145,0.73781,3395.1,3394.4,0.6792]
[1735521061433,0.29518,3394.5,3394.4,0.6792]
[1735521061635,0.29517,3394.7,3394.4,0.6792]
[1735521062130,0.29517,3394.6,3394.4,0.6792]
[1735521063035,0.29516,3394.8,3394.4,0.97438]
[1735521063734,0.29517,3394.7,3394.4,0.6792]
[1735521064732,0.29517,3394.6,3394.4,0.6792]
[1735521065127,0.73777,3395.3,3394.4,0.6792]
[1735521065326,0.73777,3395.3,3394.4,0.97439]
[1735521065535,0.29516,3394.7,3394.4,0.6792]
[1735521066834,0.29518,3394.5,3394.4,0.6792]
[1735521067430,0.27682303,3395.3,3394.4,0.6792]
[1735521067628,3.2078,3395.8,3394.9,3.2078]
[1735521067834,2.59901061,3395.9,3395.7,3.2078]
[1735521068233,2.30395061,3395.9,3395.7,3.2078]
[1735521068630,0.29505,3396.0,3395.7,3.2078]
[1735521068839,0.29506,3395.9,3395.7,3.2078]
[1735521069337,0.6571,3396.3,3395.7,3.2078]
[1735521070032,0.29503,3396.2,3395.7,3.2078]
[1735521070337,0.29507,3395.9,3395.7,3.2078]
[1735521071243,0.6571,3396.3,3395.7,3.2078]
[1735521071536,0.29507,3395.8,3395.7,3.2078]
[1735521072665,0.29507,3395.9,3395.7,3.2078]
[1735521072838,0.29507,3395.8,3395.7,3.2078]
[1735521073034,0.6571,3396.3,3395.7,3.2078]
[1735521073231,0.29507,3395.9,3395.7,3.2078]
[1735521073436,0.29507,3395.9,3395.4,0.2951]
[1735521073639,0.6571,3396.3,3395.4,0.2951]
[1735521073943,0.29507,3395.8,3395.4,0.2951]
[1735521074239,0.29507,3395.8,3395.5,0.29509]
[1735521074448,0.29507,3395.9,3395.5,0.29509]
[1735521074757,3.2078,3396.2,3395.3,3.8562]
[1735521074943,0.29505,3396.1,3395.3,4.15131]
[1735521075241,0.29508,3395.7,3395.3,4.15131]
[1735521075444,3.2078,3396.2,3395.3,4.15131]
[1735521075647,3.2078,3396.2,3395.3,3.8562]
[1735521075648,0.29508,3395.8,3395.3,3.8562]
[1735521075942,0.29508,3395.7,3395.3,4.15131]
[1735521076146,0.29509,3395.6,3395.3,3.8562]
[1735521076333,2.83757366,3396.5,3395.3,3.8562]
[1735521076542,2.83757366,3396.5,3395.9,3.2078]
[1735521076844,0.29505,3396.1,3395.9,3.2078]
[1735521077047,2.83757366,3396.5,3395.9,3.2078]
[1735521077244,3.2078,3396.6,3395.9,3.50286]
[1735521077437,3.2078,3396.6,3395.9,3.2078]
[1735521077742,0.29503,3396.3,3395.9,3.50286]
[1735521078340,0.29504,3396.2,3395.9,3.2078]
[1735521078538,3.2078,3396.6,3395.9,3.2078]
[1735521078746,0.29503,3396.4,3396.0,0.29505]
[1735521079045,3.50281,3396.6,3396.1,0.29504]
[1735521079247,6.63170449,3397.5,3396.4,3.2078]
[1735521079444,2.59889061,3397.4,3396.9,3.50277]
[1735521079641,2.30395061,3397.4,3396.9,3.2078]
[1735521079941,0.29495,3397.3,3396.9,3.2078]
[1735521080344,2.30395061,3397.4,3396.9,3.2078]
[1735521080543,2.30395061,3397.4,3397.0,1.9965]
[1735521080741,3.2078,3397.5,3397.0,1.9965]
[1735521080942,0.29493,3397.4,3397.0,1.9965]
[1735521081145,0.29497,3397.0,3396.9,3.2078]
[1735521081343,0.29502,3396.5,3396.4,3.2078]
[1735521081843,3.2078,3396.6,3396.3,4.56234129]
[1735521082044,3.2078,3396.6,3396.2,6.87934647]
[1735521082245,0.29506,3396.0,3395.9,4.56234129]
[1735521083346,0.29506,3396.0,3395.5,3.2078]
[1735521083347,0.29509,3395.6,3395.5,3.2078]
[1735521083552,0.29513,3395.1,3395.0,3.9204]
[1735521083851,0.29515,3394.9,3394.8,4.56234129]
[1735521085045,3.2078,3395.1,3394.3,3.2078]
[1735521085046,0.29519,3394.4,3394.3,3.2078]
[1735521087749,0.29525,3393.8,3393.7,3.2078]
[1735521088353,0.29529,3393.3,3393.2,4.56234129]
[1735521089352,0.29528,3393.4,3393.1,0.7182]
[1735521092751,0.29529,3393.4,3393.1,0.7182]
[1735521092947,0.29529,3393.4,3392.7,3.50314]
[1735521092948,3.2078,3393.5,3392.7,3.2078]
[1735521093157,0.29533,3392.8,3392.7,3.2078]
[1735521093653,0.29533,3392.8,3392.3,3.2078]
[1735521093850,3.2078,3393.1,3392.3,3.2078]
[1735521094049,0.29534,3392.7,3392.3,3.2078]
[1735521094245,3.2078,3393.5,3392.3,3.2078]
[1735521094459,0.29532,3393.0,3392.7,3.2078]
[1735521095461,0.29531,3393.1,3392.7,3.2078]
[1735521095649,3.2078,3393.5,3392.7,3.2078]
[1735521095849,0.29533,3392.8,3392.7,3.2078]
[1735521096749,0.29533,3392.8,3392.2,2.0259]
[1735521096750,0.29536,3392.5,3392.3,3.2078]
[1735521096952,0.29537,3392.4,3392.3,3.2078]
[1735521097350,3.2078,3392.9,3392.3,3.2078]
[1735521097351,0.29534,3392.8,3392.3,3.2078]
[1735521097656,0.29535,3392.7,3392.3,3.2078]
[1735521098950,0.29535,3392.7,3392.2,2.32128]
[1735521098951,0.29547,3391.2,3391.1,4.56234129]
[1735521099549,3.2078,3391.4,3390.8,1.3262]
[1735521099963,0.29549,3391.0,3390.8,1.3262]
[1735521101152,3.2078,3391.4,3390.8,1.3262]
[1735521101358,3.2078,3391.4,3390.8,1.6217]
[1735521101661,0.29547,3391.3,3390.8,1.6217]
[1735521102159,3.2078,3391.4,3390.8,1.3262]
[1735521103054,0.29546,3391.3,3390.8,1.3262]
[1735521103252,0.29547,3391.3,3390.8,1.3262]
[1735521103451,0.29547,3391.3,3390.8,1.62171]
[1735521104255,0.29549,3391.1,3390.8,1.3262]
[1735521104649,0.29548,3391.2,3390.8,1.3262]
[1735521104956,0.29548,3391.2,3390.9,40.8]
[1735521105156,0.29546,3391.3,3390.9,40.8]
[1735521105352,3.2078,3391.4,3390.9,40.8]
[1735521105353,0.29547,3391.2,3390.9,40.8]
[1735521107257,3.2078,3391.4,3390.9,40.8]
[1735521107562,3.2078,3391.4,3390.8,1.3262]
[1735521107759,0.29549,3391.0,3390.8,1.3262]
[1735521107956,3.2078,3391.4,3390.8,1.3262]
[1735521107957,0.2955,3390.9,3390.8,1.3262]
[1735521108358,3.2078,3391.4,3390.6,3.9237]
[1735521108554,0.29551,3390.8,3390.6,3.9237]
[1735521108762,0.29551,3390.8,3390.7,1.3584]
[1735521108958,3.2078,3391.4,3390.7,1.3584]
[1735521109158,0.2955,3390.9,3390.7,1.3584]
[1735521109364,0.29551,3390.8,3390.7,1.3584]
[1735521110562,3.2078,3391.4,3390.7,1.3584]
[1735521110765,0.29551,3390.8,3390.7,1.3584]
[1735521113062,3.2078,3391.4,3390.7,1.3584]
[1735521113562,0.29548,3391.2,3390.9,0.2955]
[1735521113766,0.29548,3391.2,3390.7,1.3584]
[1735521113767,3.2078,3391.4,3390.7,1.3584]
[1735521113963,3.2078,3391.4,3390.8,0.29551]
[1735521114267,0.2955,3391.0,3390.7,1.3584]
[1735521114564,0.29551,3390.8,3390.7,1.3584]
[1735521115170,0.29551,3390.8,3390.7,0.6704]
[1735521115966,0.2955,3390.9,3390.7,0.6704]
[1735521116668,3.2078,3391.4,3390.8,0.2955]
[1735521116669,0.29548,3391.1,3390.8,0.2955]
[1735521116868,0.2955,3391.0,3390.8,0.29551]
[1735521117162,0.2955,3391.0,3390.7,0.96591]
[1735521117363,0.2955,3390.9,3390.7,0.96591]
[1735521117765,0.2955,3390.9,3390.7,0.96592]
[1735521118161,0.2955,3390.9,3390.7,0.6704]
[1735521118869,0.29551,3390.8,3390.7,0.6704]
[1735521119069,0.29552,3390.7,3390.6,3.2078]
[1735521119262,3.2078,3391.4,3390.6,3.2078]
[1735521119568,0.29549,3391.1,3390.9,0.2955]
[1735521119771,3.2078,3391.4,3390.6,3.2078]
[1735521119965,0.2955,3391.0,3390.6,3.2078]
[1735521120167,3.2078,3391.4,3390.8,0.29551]
[1735521120469,0.2955,3391.0,3390.7,0.29551]
[1735521120668,3.2078,3391.4,3390.7,0.29551]
[1735521120864,0.29549,3391.0,3390.8,0.29551]
[1735521121370,3.2078,3391.4,3390.6,3.2078]
[1735521121565,0.29547,3391.2,3391.0,0.29549]
[1735521121762,3.2078,3391.4,3390.6,3.2078]
[1735521121966,0.29548,3391.1,3390.6,3.2078]
[1735521122169,3.2078,3391.4,3390.6,3.2078]
[1735521122368,0.29552,3390.7,3390.6,3.2078]
[1735521122670,0.29551,3390.8,3390.6,3.50333]
[1735521122871,0.29552,3390.7,3390.6,3.50333]
[1735521123069,0.29552,3390.7,3390.6,3.2078]
[1735521123664,0.29555,3390.3,3390.2,3.2078]
[1735521124876,0.73876,3390.9,3390.2,3.2078]
[1735521125177,0.29555,3390.4,3390.2,3.2078]
[1735521126072,0.29555,3390.3,3390.2,3.2078]
[1735521126374,0.29551,3390.9,3390.6,0.29553]
[1735521126670,0.29551,3390.9,3389.8,0.73899]
[1735521126671,0.29557,3390.2,3389.9,0.29559]
[1735521126869,0.29557,3390.1,3389.7,3.2078]
[1735521127070,0.29558,3390.0,3389.7,3.2078]
[1735521127272,0.29557,3390.1,3389.7,3.5034]
[1735521127467,0.6733,3390.4,3389.7,3.2078]
[1735521127676,0.29552,3390.7,3390.3,0.29555]
[1735521127977,0.29553,3390.6,3390.3,0.6753]
[1735521128466,0.29553,3390.6,3390.3,0.97085]
[1735521128665,3.2078,3390.9,3390.3,0.97085]
[1735521128868,0.29552,3390.7,3390.3,0.97085]
[1735521129373,0.29553,3390.6,3390.3,1.3311]
[1735521129571,3.2078,3390.9,3389.8,3.2078]
[1735521129572,8.2078,3390.9,3389.8,3.2078]
[1735521129778,0.29559,3389.9,3389.8,3.2078]
[1735521130674,0.29558,3390.0,3389.6,0.29561]
[1735521130974,0.2956,3389.8,3389.4,8.06577129]
[1735521131272,0.29562,3389.5,3389.4,3.2078]
[1735521131569,3.2078,3390.1,3389.4,3.2078]
[1735521131876,0.2956,3389.8,3389.4,3.50343]
[1735521132773,3.2078,3390.1,3389.4,3.2078]
[1735521133078,0.29562,3389.6,3389.4,3.2078]
[1735521133276,3.2078,3390.1,3389.4,3.2078]
[1735521133881,0.29562,3389.6,3389.4,3.2078]
[1735521134378,3.2078,3390.1,3389.4,3.2078]
[1735521134568,0.29561,3389.7,3389.2,0.97095]
[1735521134766,3.2078,3390.1,3389.2,0.6753]
[1735521134970,0.2956,3389.8,3389.4,0.29563]
[1735521135174,0.29558,3390.0,3389.4,0.29563]
[1735521135375,0.29561,3389.7,3389.4,0.29563]
[1735521135784,3.2078,3390.1,3389.4,0.29563]
[1735521136079,3.2078,3390.1,3389.7,0.2956]
[1735521136269,0.29558,3390.0,3389.7,0.2956]
[1735521136674,3.2078,3390.1,3389.8,40.8]
[1735521136875,0.29551,3390.8,3390.4,0.29554]
[1735521137279,3.2078,3391.0,3390.1,0.6769]
[1735521137483,0.29553,3390.7,3390.2,0.29556]
[1735521137679,0.29553,3390.6,3390.2,0.29556]
[1735521137883,0.29555,3390.4,3390.1,0.6769]
[1735521138175,3.2078,3390.6,3390.0,3.2078]
[1735521138377,0.29554,3390.5,3390.1,0.97246]
[1735521138581,3.50333,3390.6,3390.2,0.29556]
[1735521138981,3.2078,3390.6,3390.1,0.6769]
[1735521139177,3.50329,3391.0,3390.6,0.29552]
[1735521139376,3.50329,3391.0,3390.5,3.2078]
[1735521139576,3.2078,3391.0,3390.1,0.6769]
[1735521139776,0.29552,3390.7,3390.3,0.29555]
[1735521139974,3.2078,3391.0,3390.9,0.2955]
[1735521142185,0.61,3392.0,3391.7,0.29543]
[1735521142186,3.2078,3392.0,3391.7,0.29543]
[1735521142483,3.2078,3392.0,3391.5,3.2078]
[1735521142673,0.29543,3391.8,3391.5,44.0078]
[1735521142877,3.50321,3392.0,3391.6,0.29544]
[1735521143076,3.50321,3392.0,3391.5,44.0078]
[1735521143382,0.29541,3391.9,3391.5,3.50324]
[1735521143585,3.2078,3392.0,3391.5,3.50324]
[1735521143784,3.50321,3392.0,3391.5,3.50324]
[1735521144488,3.2078,3392.0,3391.5,3.2078]
[1735521144683,0.29542,3391.9,3391.5,3.2078]
[1735521145288,3.50321,3392.0,3391.5,3.50324]
[1735521145588,3.2078,3392.0,3391.5,3.2078]
[1735521145981,3.2078,3392.0,3391.8,0.29542]
[1735521146783,3.2078,3392.0,3391.9,0.29541]
[1735521146985,3.2078,3392.0,3391.7,0.29543]
[1735521147183,3.2078,3392.0,3391.8,0.95952]
[1735521148390,3.2078,3392.5,3391.8,0.6641]
[1735521148589,0.29538,3392.4,3391.8,0.6641]
[1735521148890,3.2078,3392.5,3391.8,0.6641]
[1735521149090,0.29539,3392.2,3391.8,0.6641]
[1735521149686,3.2078,3392.5,3391.8,0.6641]
[1735521149687,0.29541,3392.0,3391.8,0.6641]
[1735521149892,0.29541,3392.0,3391.5,8.06559129]
[1735521150597,0.29541,3392.0,3391.6,0.29544]
[1735521150886,3.2078,3392.5,3391.5,7.77014129]
[1735521151090,0.29544,3391.6,3391.5,3.2078]
[1735521151291,0.94582,3391.9,3391.5,3.50325]
[1735521151487,3.2078,3392.5,3391.5,3.2078]
[1735521151683,0.29539,3392.2,3391.6,0.29544]
[1735521151891,0.29539,3392.2,3391.7,0.29542]
[1735521153707,3.8835,3392.5,3391.5,3.2078]
[1735521153999,0.29538,3392.3,3391.9,0.29541]
[1735521154194,3.8835,3392.5,3391.9,0.29541]
[1735521154396,0.29537,3392.4,3391.9,0.29541]
[1735521154589,0.29538,3392.3,3392.0,0.6723]
[1735521155191,3.2078,3392.5,3392.0,0.6723]
[1735521155390,3.2078,3392.5,3392.2,0.29538]
[1735521156293,3.2078,3392.5,3392.0,0.6723]
[1735521156488,3.2078,3392.5,3392.2,0.29539]
[1735521157993,3.2078,3392.5,3392.0,0.6723]
[1735521158199,3.2078,3392.5,3391.7,0.29543]
[1735521158391,0.2954,3392.2,3391.8,0.29542]
[1735521159104,0.29538,3392.3,3391.9,0.29541]
[1735521160491,3.2078,3392.5,3391.6,0.6915]
[1735521160695,0.2954,3392.1,3391.7,0.29542]
[1735521161997,3.2078,3392.5,3391.6,0.6915]
[1735521162196,0.29543,3391.8,3391.6,0.6915]
[1735521163401,0.29541,3392.0,3391.7,0.29543]
[1735521165300,0.6738,3392.3,3391.7,0.29543]